fUSD/lending_fUSD_20250419
["ID","MTS","AMOUNT","RATE_DAILY","PERIOD"]
[358383732,1745039437846,-316.1433,0.00019886,2]
[358383734,1745039437855,-4155.0,0.000199,2]
[358383736,1745039437864,-156.97062424,0.000199,2]
[358383738,1745039437873,-189.1194563,0.000199,2]
[358383739,1745039437882,-1000.0,0.000199,2]
[358383741,1745039437892,-1788.75305996,0.000199,2]
[358383743,1745039437901,-300.619,0.00019928,2]
[358383746,1745039437910,-155.381,0.00019928,2]
[358383747,1745039437920,-3972.0,0.00019928,2]
[358383749,1745039437930,-500.0,0.00019973,2]
[358383751,1745039437939,-1040.00247903,0.00019985,2]
[358383753,1745039437948,-46805.7496007,0.00019986,2]
[358383755,1745039437958,-3914.3274203,0.00019986,2]
[358383757,1745039437968,-11430.3154132,0.00019986,2]
[358383759,1745039437978,-1282.0483709,0.00019986,2]
[358383762,1745039437989,-280.57488167,0.00019999,2]
[358383764,1745039437998,-2325777.20967524,0.0002,2]
[358383767,1745039438012,-340569.66230341,0.0002,2]
[358383798,1745039438309,-5.12781363,0.0002,2]
[358383932,1745039439708,-1806346.47372276,0.0002,2]
[358383934,1745039439719,-1221.5783592,0.0002,2]
[358383936,1745039439728,-155.692439,0.0002,2]
[358383938,1745039439738,-151.0,0.0002,2]
[358383940,1745039439747,-151.0,0.0002,2]
[358383942,1745039439757,-57234.99326999,0.0002,2]
[358383944,1745039439769,-57234.99326999,0.0002,2]
[358383946,1745039439779,-152.338823,0.0002,2]
[358383948,1745039439789,-151.0,0.0002,2]
[358383950,1745039439798,-151.0,0.0002,2]
[358383952,1745039439808,-151.0,0.0002,2]
[358383954,1745039439818,-151.0,0.0002,2]
[358383956,1745039439827,-151.0,0.0002,2]
[358383958,1745039439837,-152.885884,0.0002,2]
[358383960,1745039439847,-151.0,0.0002,2]
[358383962,1745039439856,-151.0,0.0002,2]
[358383964,1745039439866,-150.0,0.0002,2]
[358383966,1745039439875,-151.0,0.0002,2]
[358383968,1745039439885,-156.571,0.0002,2]
[358383970,1745039439895,-567.98025702,0.0002,2]
[358383973,1745039439905,-1000.0,0.0002,2]
[358383975,1745039439914,-776.75478189,0.0002,2]
[358383976,1745039439924,-150.0,0.0002,2]
[358383978,1745039439934,-914.0,0.0002,2]
[358383981,1745039439945,-2051.0,0.0002,2]
[358383982,1745039439956,-707.145,0.0002,2]
[358383984,1745039439967,-794.0,0.0002,2]
[358383987,1745039439978,-1444.313,0.0002,2]
[358383988,1745039439988,-500.0,0.0002,2]
[358383990,1745039439998,-547.5,0.0002,2]
[358383993,1745039440008,-907.0,0.0002,2]
[358383994,1745039440017,-1285.756,0.0002,2]
[358383996,1745039440027,-576.478,0.0002,2]
[358383998,1745039440036,-150.0,0.0002,2]
[358384021,1745039440243,-151.38419591,0.0002,2]
[358384024,1745039440253,-152.78624782,0.0002,2]
[358384025,1745039440262,-500.0,0.0002,2]
[358384027,1745039440271,-500.0,0.0002,2]
[358384029,1745039440281,-159.0,0.0002,2]
[358384032,1745039440290,-150.0,0.0002,2]
[358384033,1745039440299,-500.0,0.0002,2]
[358384035,1745039440308,-150.0,0.0002,2]
[358384038,1745039440318,-150.0,0.0002,2]
[358384039,1745039440327,-1008.90092333,0.0002,2]
[358384042,1745039440337,-601.56112446,0.0002,2]
[358384044,1745039440347,-500.0,0.0002,2]
[358384046,1745039440356,-500.0,0.0002,2]
[358384047,1745039440364,-500.0,0.0002,2]
[358384049,1745039440374,-151.43883818,0.0002,2]
[358384052,1745039440383,-150.90924798,0.0002,2]
[358384053,1745039440392,-151.2149049,0.0002,2]
[358384056,1745039440402,-276.04146334,0.0002,2]
[358384057,1745039440412,-150.9757908,0.0002,2]
[358384059,1745039440422,-150.0,0.0002,2]
[358384061,1745039440431,-150.0,0.0002,2]
[358384063,1745039440440,-500.0,0.0002,2]
[358384065,1745039440450,-500.0,0.0002,2]
[358384067,1745039440460,-150.0,0.0002,2]
[358384069,1745039440469,-150.0,0.0002,2]
[358384071,1745039440479,-8980.2982216,0.0002001,2]
[358384073,1745039440489,-4951.15204187,0.0002001,2]
[358384075,1745039440498,-5772.0,0.0002001,2]
[358384077,1745039440507,-1455.71,0.00020062,2]
[358384079,1745039440517,-716.52,0.00020081,2]
[358384081,1745039440526,-1671.26277045,0.0002015,2]
[358384083,1745039440535,-566.0,0.00020153,2]
[358384085,1745039440544,-200.0,0.00020204,2]
[358384087,1745039440553,-1000.0,0.00020215,2]
[358384089,1745039440562,-500.0,0.00020345,2]
[358384091,1745039440571,-500.0,0.00020345,2]
[358384093,1745039440581,-687.50055591,0.00020345,2]
[358384095,1745039440590,-3441.85625716,0.00020382,2]
[358384097,1745039440599,-166.66,0.00020514,2]
[358384099,1745039440608,-300.0,0.0002052,2]
[358384101,1745039440618,-5312.37,0.00020548,2]
[358384103,1745039440627,-21887.80072751,0.000207,2]
[358384105,1745039440636,-441.09316542,0.00020748,2]
[358384107,1745039440646,-500.0,0.00020792,2]
[358384109,1745039440655,-500.0,0.00020792,2]
[358384111,1745039440664,-225.36064981,0.00020792,2]
[358384113,1745039440674,-7974.7,0.00020822,2]
[358384115,1745039440683,-23680.05834271,0.00020995,2]
[358384117,1745039440693,-20000.0,0.00021,2]
[358384119,1745039440702,-1152.94026697,0.00021,2]
[358384121,1745039440711,-190.2870709,0.00021,2]
[358384123,1745039440721,-200.0,0.00021,2]
[358384125,1745039440730,-350.0,0.00021,2]
[358384127,1745039440739,-420.0,0.00021,2]
[358384129,1745039440748,-242.58,0.00021049,2]
[358384131,1745039440758,-420.0,0.00021102,2]
[358384133,1745039440767,-150.0,0.00021109,5]
[358384135,1745039440776,-250.0,0.00021109,2]
[358384137,1745039440786,-150.0,0.00021109,5]
[358384139,1745039440795,-166.66,0.0002117,2]
[358384141,1745039440804,-150.0,0.00021205,5]
[358384143,1745039440813,-250.0,0.00021205,2]
[358384145,1745039440822,-4102.95,0.0002137,2]
[358384147,1745039440831,-250.0,0.000215,2]
[358384149,1745039440840,-250.0,0.000215,2]
[358384150,1745039440849,-250.0,0.000215,2]
[358384153,1745039440858,-250.0,0.000215,2]
[358384154,1745039440867,-250.0,0.000215,2]
[358384157,1745039440877,-250.0,0.000215,2]
[358384158,1745039440886,-250.1,0.000215,2]
[358384160,1745039440895,-7302.50266829,0.000217,2]
[358384163,1745039440905,-5434.0,0.000218,2]
[358384164,1745039440914,-166.66,0.00021825,2]
[358384167,1745039440924,-3266.32655498,0.00021868,2]
[358384169,1745039440933,-300.0,0.0002189,2]
[358384171,1745039440942,-2000.0,0.00021917,2]
[358384172,1745039440951,-2000.0,0.00021917,2]
[358384175,1745039440962,-2000.0,0.00021917,2]
[358384176,1745039440971,-2000.0,0.00021917,2]
[358384179,1745039440980,-2000.0,0.00021917,2]
[358384180,1745039440990,-2000.0,0.00021917,2]
[358384181,1745039441000,-2000.0,0.00021917,2]
[358384183,1745039441009,-2000.0,0.00021917,2]
[358384184,1745039441019,-2000.0,0.00021917,2]
[358384185,1745039441028,-2000.0,0.00021917,2]
[358384186,1745039441038,-2000.0,0.00021917,2]
[358384187,1745039441047,-2000.0,0.00021917,2]
[358384188,1745039441057,-2000.0,0.00021917,2]
[358384189,1745039441066,-1703.14485023,0.00021917,2]
[358384190,1745039441075,-151.63593554,0.00021918,2]
[358384191,1745039441084,-247.37256531,0.00022,2]
[358384192,1745039441094,-500.0,0.00022,2]
[358384193,1745039441103,-2575.28,0.00022,2]
[358384194,1745039441113,-200.0,0.000221,2]
[358384195,1745039441122,-242.58,0.00022102,2]
[358384196,1745039441131,-231.82390707,0.0002211,2]
[358384197,1745039441140,-1773.71,0.00022226,2]
[358384198,1745039441150,-152.0,0.00022446,3]
[358384199,1745039441159,-166.66,0.00022481,2]
[358384200,1745039441169,-34206.18771915,0.000225,2]
[358384201,1745039441178,-504.60629966,0.0002271,2]
[358384202,1745039441188,-1000.0,0.00022742,2]
[358384203,1745039441197,-587.0,0.00022884,2]
[358384204,1745039441206,-4155.0,0.000229,2]
[358384205,1745039441215,-152.0,0.00022928,2]
[358384206,1745039441226,-2686.251,0.00022928,2]
[358384207,1745039441236,-320.0,0.00023,10]
[358384208,1745039441246,-387.82357322,0.00023,15]
[358384209,1745039441255,-398.986,0.00023,2]
[358384210,1745039441265,-2051.0,0.00023,2]
[358384211,1745039441274,-794.0,0.00023,2]
[358384212,1745039441284,-1440.0,0.00023,2]
[358384213,1745039441293,-546.0,0.00023,2]
[358384214,1745039441305,-907.0,0.00023,2]
[358384215,1745039441314,-1281.0,0.00023,2]
[358384216,1745039441323,-400.0,0.00023,2]
[358384217,1745039441333,-576.0,0.00023,2]
[358384218,1745039441342,-605.0,0.00023,2]
[358384219,1745039441351,-203.10479481,0.00023,2]
[358384220,1745039441361,-152.0,0.00023007,4]
[358384221,1745039441370,-402.80365145,0.0002301,2]
[358384222,1745039441379,-200.0,0.000231,2]
[358384223,1745039441388,-587.0,0.00023106,2]
[358384224,1745039441398,-166.66,0.00023136,2]
[358384225,1745039441407,-242.58,0.00023154,2]
[358384226,1745039441417,-50299.4619158,0.000232,2]
[358384227,1745039441427,-605.0,0.00023288,2]
[358384228,1745039441436,-506.06820791,0.00023382,2]
[358384229,1745039441445,-160.26813259,0.00023382,2]
[358384230,1745039441455,-200.0,0.000235,2]
[358384231,1745039441466,-605.0,0.00023562,2]
[358384232,1745039441475,-152.0,0.00023568,5]
[358384233,1745039441485,-178.22,0.00023827,2]
[358384234,1745039441495,-605.0,0.00023836,2]
[358384235,1745039441504,-1147.08,0.00023836,2]
[358384236,1745039441513,-500.0,0.00023973,2]
[358384237,1745039441523,-500.0,0.00023973,2]
[358384238,1745039441533,-454.85611981,0.00023973,2]
[358384239,1745039441543,-59544.92239893,0.00024,2]
[358384240,1745039441552,-983.97078679,0.00024,2]
[358384241,1745039441562,-29419.05132642,0.00024,2]
[358384242,1745039441588,-1500.0,0.00024,2]
[358384245,1745039443693,-50237.56390605,0.00024,2]
[358384246,1745039443703,-154.177389,0.00024,7]
[358384247,1745039443712,-151.0,0.00024,7]
[358384248,1745039443722,-153.181367,0.00024,7]
[358384249,1745039443732,-151.0,0.00024,7]
[358384250,1745039443743,-153.273663,0.00024,7]
[358384251,1745039443752,-151.0,0.00024,7]
[358384252,1745039443762,-151.0,0.00024,7]
[358384253,1745039443771,-151.0,0.00024,7]
[358384254,1745039443781,-151.0,0.00024,7]
[358384255,1745039443791,-785.36860802,0.0002402,2]
[358384256,1745039443801,-200.0,0.000241,2]
[358384257,1745039443811,-605.0,0.0002411,2]
[358384258,1745039443820,-152.0,0.00024129,6]
[358384259,1745039443830,-605.0,0.00024164,2]
[358384260,1745039443839,-242.58,0.00024207,2]
[358384261,1745039443849,-406.58598441,0.0002421,2]
[358384262,1745039443858,-3562.67538576,0.0002421,2]
[358384263,1745039443867,-605.0,0.00024384,2]
[358384264,1745039443877,-15714.67407398,0.00024444,2]
[358384265,1745039444034,-1773.71,0.0002449,2]
[358384266,1745039444045,-1000.0,0.00024658,2]
[358384267,1745039444055,-152.0,0.0002469,7]
[358384268,1745039444065,-500.0,0.000248,2]
[358384269,1745039444074,-2575.28,0.000248,2]
[358384270,1745039444083,-39987.992942,0.000248,3]
[358384271,1745039444092,-500.0,0.00024873,2]
[358384272,1745039444101,-500.0,0.00024873,2]
[358384273,1745039444110,-500.0,0.00024873,2]
[358384274,1745039444120,-500.0,0.00024873,2]
[358384275,1745039444130,-500.0,0.00024873,2]
[358384276,1745039444140,-165.42708863,0.00024873,2]
[358384277,1745039444150,-621.94819935,0.00024873,2]
[358384278,1745039444160,-160.48227048,0.00024873,2]
[358384279,1745039444170,-500.0,0.00024873,2]
[358384280,1745039444181,-500.0,0.00024873,2]
[358384281,1745039444190,-203.70662461,0.00024873,2]
[358384282,1745039444200,-337.83597902,0.000249,2]
[358384283,1745039444209,-151.0,0.000249,7]
[358384284,1745039444219,-154.075332,0.000249,7]
[358384285,1745039444232,-259685.679809,0.000249,3]
[358384286,1745039444241,-245.0,0.00024936,2]
[358384287,1745039444251,-200.05111849,0.00025,2]
[358384288,1745039444260,-1604.62664344,0.00025,2]
[358384289,1745039444270,-256.54902359,0.00025,2]
[358384290,1745039444281,-260.48544042,0.00025,2]
[358384291,1745039444290,-200.0,0.00025,2]
[358384292,1745039444299,-2932.89969001,0.00025,2]
[358384293,1745039444308,-1759.89418244,0.00025,2]
[358384294,1745039444317,-1026.13997487,0.00025,2]
[358384295,1745039444327,-161.26617848,0.00025,2]
[358384296,1745039444336,-5194.76,0.00025,2]
[358384297,1745039444346,-150.0,0.00025,2]
[358384298,1745039444355,-150.0,0.00025,2]
[358384299,1745039444365,-150.0,0.00025,2]
[358384300,1745039444375,-450.0,0.00025,2]
[358384301,1745039444385,-150.0,0.00025,2]
[358384302,1745039444395,-216.0,0.000251,2]
[358384303,1745039444405,-3257.34152635,0.000251,2]
[358384304,1745039444415,-605.0,0.00025131,2]
[358384305,1745039444425,-152.0,0.00025251,8]
[358384306,1745039444434,-242.58,0.00025259,2]
[358384307,1745039444445,-1000.0,0.00025269,2]
[358384308,1745039444455,-823.0,0.000253,2]
[358384309,1745039444465,-253.0,0.0002537,2]
[358384310,1745039444474,-617.0,0.00025373,2]
[358384311,1745039444484,-150.0,0.00025479,2]
[358384312,1745039444493,-500.0,0.00025479,2]
[358384313,1745039444502,-150.0,0.00025479,2]
[358384314,1745039444512,-500.0,0.00025479,2]
[358384315,1745039444522,-500.0,0.00025479,2]
[358384316,1745039444532,-504.51393053,0.00025479,2]
[358384317,1745039444541,-500.0,0.00025479,2]
[358384318,1745039444551,-500.0,0.00025479,2]
[358384319,1745039444560,-500.0,0.00025479,2]
[358384320,1745039444570,-252.63147663,0.00025479,2]
[358384321,1745039444579,-500.0,0.00025479,2]
[358384322,1745039444589,-500.0,0.00025479,2]
[358384323,1745039444598,-150.0,0.00025479,2]
[358384324,1745039444608,-152.0,0.00025812,9]
[358384325,1745039444618,-4155.0,0.000259,2]
[358384326,1745039444627,-152.0,0.00025928,2]
[358384327,1745039444638,-578.10816487,0.0002599,2]
[358384328,1745039444647,-4355.00125108,0.00026,2]
[358384329,1745039444657,-4433.65,0.00026,2]
[358384330,1745039444666,-3060.77954268,0.00026,2]
[358384331,1745039444675,-151.0,0.00026,7]
[358384332,1745039444685,-6152.75107661,0.00026,2]
[358384335,1745039445333,-1164.41173781,0.00026,2]
[358384336,1745039445343,-151.0,0.00026,7]
[358384338,1745039445353,-2051.0,0.00026,2]
[358384339,1745039445362,-794.0,0.00026,2]
[358384341,1745039445371,-1440.0,0.00026,2]
[358384342,1745039445381,-546.0,0.00026,2]
[358384344,1745039445390,-907.0,0.00026,2]
[358384345,1745039445400,-1281.0,0.00026,2]
[358384347,1745039445409,-576.0,0.00026,2]
[358384349,1745039445419,-446.67,0.00026094,2]
[358384350,1745039445429,-605.0,0.00026098,2]
[358384351,1745039445438,-605.0,0.00026098,2]
[358384352,1745039445447,-200.0,0.000261,2]
[358384353,1745039445457,-242.58,0.00026312,2]
[358384354,1745039445467,-152.0,0.00026373,10]
[358384355,1745039445476,-154.01,0.00026389,2]
[358384356,1745039445486,-1808.20767945,0.000264,2]
[358384357,1745039445746,-2124.3,0.000264,2]
[358384359,1745039705413,2493.93,0.00019,2]
[358384360,1745039707288,642.07,0.00019,2]
[358384361,1745039707974,-160.52759675,0.00019,2]
[358384362,1745039748861,210.90569853,0.000189,2]
[358384363,1745039882006,150.0,0.000194,5]
[358384364,1745040005372,-214.85753708,0.00019,2]
[358384365,1745040066765,-165.1313375,0.00018999,2]
[358384366,1745040152324,10000.0,0.00032,60]
[358384367,1745040241848,-164.35347373,0.00018999,2]
[358384368,1745040242217,150.0,0.00018999,5]
[358384369,1745040317700,1069.0,0.00018974,2]
[358384370,1745040322330,1090.46804086,0.00018974,2]
[358384371,1745040337536,-135.64652627,0.00018999,2]
[358384372,1745040337559,-24.92347373,0.00018999,2]
[358384373,1745040362207,150.0,0.00019,5]
[358384374,1745040362489,-300.0,0.00018999,2]
[358384377,1745040422551,-300.0,0.00018999,2]
[358384378,1745040429664,16900.0,0.0003,30]
[358384379,1745040452145,-225.07652627,0.00018999,2]
[358384380,1745040452165,-942.14998737,0.00019,2]
[358384381,1745040453405,-172.53742427,0.00019,2]
[358384382,1745040454080,-361.78745453,0.00019,2]
[358384383,1745040454102,-2493.93,0.00019,2]
[358384384,1745040454123,-1496.36,0.00019,2]
[358384385,1745040454145,-6299.97908556,0.00019,2]
[358384386,1745040531142,-177.847,0.00019,2]
[358384392,1745040547296,-411.750628,0.00019,2]
[358384397,1745040569857,-281.611641,0.00019,2]
[358384401,1745040602452,-254.30240261,0.00019,2]
[358384410,1745040631539,-6952.3397261,0.00019,2]
[358384411,1745040631549,-250.0,0.0001901,2]
[358384412,1745040631558,-898.81522665,0.0001902,2]
[358384413,1745040631567,-1069.0,0.00019451,2]
[358384414,1745040631576,-300.0,0.00019799,2]
[358384415,1745040631586,-1989.82158219,0.000198,2]
[358384416,1745040631711,-504.10841781,0.000198,2]
[358384417,1745040631721,-57.3783896,0.000198,2]
[358384418,1745040631732,-1731.37467036,0.000198,2]
[358384419,1745040631741,-1913.47903459,0.000198,2]
[358384420,1745040631750,-189.1194563,0.000198,2]
[358384421,1745040631759,-1788.75305996,0.0001985,2]
[358384422,1745040631768,-1000.0,0.000199,2]
[358384423,1745040631778,-611.55543938,0.000199,2]
[358384424,1745040631794,-765.29,0.000199,2]
[358384425,1745040631834,-439.83347109,0.000199,2]
[358384426,1745040631845,-4177.46885942,0.000199,2]
[358384472,1745040637692,-452.94325608,0.000199,2]
[358384473,1745040637753,-320.36,0.000199,2]
[358384474,1745040637928,-1025.56835964,0.000199,2]
[358384547,1745040640201,-3841.89053505,0.000199,2]
[358384548,1745040640372,-1511.18044727,0.000199,2]
[358384549,1745040640384,-2540.73,0.000199,2]
[358384563,1745040642659,-453.0,0.000199,2]
[358384617,1745040644236,-3985.85740928,0.000199,2]
[358384656,1745040664467,163.83,0.00027425,30]
[358384657,1745040692135,-212.19885,0.000198,2]
[358384658,1745040714812,-236.50147488,0.000198,2]
[358384659,1745040721015,250.0,0.00017,2]
[358384660,1745040758349,-168.035816,0.00019,2]
[358384661,1745040816315,168.035816,0.000188,2]
[358384662,1745041126281,-131.964184,0.00019,2]
[358384663,1745041126304,-33.57209487,0.00019502,2]
[358384664,1745041156801,-259.83990534,0.00019502,2]
[358384665,1745041162993,-300.0,0.00019502,2]
[358384666,1745041277205,-300.0,0.00019502,2]
[358384667,1745041387588,-78.89899979,0.00019502,2]
[358384668,1745041387774,-197.07156322,0.000197,2]
[358384669,1745041497815,-349.5624672,0.000197,2]
[358384670,1745041514436,1000.0,0.00030137,30]
[358384671,1745041514942,1000.0,0.00030137,30]
[358384672,1745041515229,1000.0,0.00030137,30]
[358384673,1745041515508,1000.0,0.00030137,30]
[358384674,1745041515812,1000.0,0.00030137,30]
[358384675,1745041516146,1000.0,0.00030137,30]
[358384676,1745041516440,1000.0,0.00030137,30]
[358384677,1745041516716,1000.0,0.00030137,30]
[358384678,1745041517024,1276.44452256,0.00030137,30]
[358384679,1745041609733,-189.11088384,0.000197,2]
[358384680,1745041632133,-454.96290449,0.000197,2]
[358384681,1745041632155,-300.0,0.00019799,2]
[358384682,1745041632176,-300.0,0.00019799,2]
[358384683,1745041632196,-729.3398,0.000198,2]
[358384684,1745041632229,-2442.87485257,0.000198,2]
[358384685,1745041635086,-449.71415241,0.000198,2]
[358384692,1745041831895,-300.0,0.00019799,2]
[358384693,1745041831905,-300.0,0.00019799,2]
[358384694,1745041831914,-9261.2031721,0.000198,2]
[358384714,1745041837767,-313.04878017,0.000198,2]
[358384735,1745041839954,-2120.0933582,0.000198,2]
[358384746,1745041895419,-166.277563,0.000192,2]
[358384747,1745042108267,-1053.75906631,0.00019,2]
[358384748,1745042222338,-294.94161978,0.00019,2]
[358384749,1745042276307,383.30486,0.00018905,2]
[358384751,1745042292652,-12.02931391,0.00019,2]
[358384752,1745042292683,-250.0,0.00019241,2]
[358384753,1745042292715,-131.33295509,0.00019799,2]
[358384755,1745042308511,-168.66704491,0.00019799,2]
[358384756,1745042308536,-81.55623809,0.00019799,2]
[358384757,1745042316352,-167.8371,0.00019799,2]
[358384758,1745042325304,-50.60666191,0.00019799,2]
[358384759,1745042325328,-254.26910347,0.000198,2]
[358384760,1745042354936,-271.48852512,0.00019701,2]
[358384761,1745042383410,-271.48852512,0.000197,2]
[358384762,1745042428066,-539.437027,0.00019601,2]
[358384764,1745042548622,250.0,0.00017,2]
[358384765,1745042844184,-300.0,0.00019,2]
[358384766,1745042844207,-300.0,0.00019799,2]
[358384767,1745042844229,-349.21920349,0.000198,2]
[358384773,1745043031867,-2793.88281482,0.000197,2]
[358384889,1745043198241,-335.47736614,0.00019497,2]
[358384890,1745043212753,-164.52263386,0.00019497,2]
[358384891,1745043212778,-67.52736614,0.000197,2]
[358384892,1745043243066,-212.19885,0.00019601,2]
[358384894,1745043397285,195.51113653,0.00032,60]
[358384895,1745043620081,-383.8415863,0.00019312,2]
[358384896,1745043639383,170.06148,0.00027,120]
[358384897,1745043658507,-291.63813106,0.00019312,2]
[358384898,1745043660094,-296.77160747,0.00019312,2]
[358384899,1745043672559,150.0,0.00019149,7]
[358384900,1745043682946,-296.07419485,0.00019215,2]
[358384901,1745043867041,190.37,0.00032,60]
[358384902,1745043907055,-251.92214903,0.00019,2]
[358384903,1745043936747,-251.25034667,0.00019,2]
[358384904,1745043987100,1184.450174,0.00018905,2]
[358384905,1745043991263,291.63813106,0.000189,2]
[358384906,1745044022147,-253.98059422,0.00019,2]
[358384907,1745044030760,-163.63364825,0.00018999,2]
[358384908,1745044044122,-136.36635175,0.00018999,2]
[358384909,1745044044145,-331.42691008,0.00019,2]
[358384910,1745044044167,-1088.58,0.00019,2]
[358384911,1745044044189,-1088.58,0.00019,2]
[358384912,1745044044211,-6299.97908556,0.00019,2]
[358384913,1745044044232,-250.0,0.00019263,2]
[358384914,1745044044254,-291.63813104,0.00019293,2]
[358384915,1745044044274,-175.62867517,0.00019312,2]
[358384916,1745044044295,-19.57786522,0.00019455,2]
[358384917,1745044053096,-147.08213478,0.00019455,2]
[358384918,1745044053119,-291.63813104,0.00019686,2]
[358384919,1745044053141,-656.75764711,0.000197,2]
[358384932,1745044179632,351.93,0.00018864,2]
[358384933,1745044180239,-207.0,0.00019699,2]
[358384934,1745044180262,-144.93,0.000197,2]
[358384935,1745044182370,-2934.84762951,0.000197,2]
[358384936,1745044183890,-155.24432327,0.000197,2]
[358384937,1745044202044,-300.0,0.00019699,2]
[358384938,1745044205027,-126.28284521,0.000197,2]
[358384939,1745044205051,-28.96147806,0.000197,2]
[358384940,1745044208594,-151.0,0.00019,2]
[358384941,1745044211413,-157.03852194,0.00019,2]
[358384942,1745044214082,-562.83147806,0.00019,2]
[358384943,1745044214107,-157.03852194,0.000197,2]
[358384944,1745044215641,-562.83147806,0.000197,2]
[358384945,1745044217676,-151.0,0.000197,2]
[358384946,1745044219214,-833.71812395,0.000197,2]
[358384947,1745044222235,-682.71812395,0.000197,2]
[358384960,1745044232118,-615.85558201,0.000197,2]
[358384971,1745044232208,-1333.79999994,0.000197,2]
[358384973,1745044232221,-699.0406038,0.000197,2]
[358384974,1745044232244,-5430.73358829,0.000197,2]
[358384975,1745044232254,-392.39,0.000197,2]
[358384976,1745044232263,-250.0,0.00019712,2]
[358384977,1745044232273,-150.0,0.00019724,2]
[358384978,1745044232282,-1651.15751315,0.00019776,2]
[358384979,1745044232292,-153.44931698,0.00019785,2]
[358384980,1745044232301,-11751.83853046,0.00019786,2]
[358384981,1745044232398,-1798.84122781,0.00019786,2]
[358385014,1745044238211,-3808.9992382,0.00019786,2]
[358385015,1745044238425,-11321.10908606,0.00019786,2]
[358385047,1745044243307,-303.97490177,0.00019786,2]
[358385058,1745044377656,250.0,0.00017,2]
[358385059,1745044382290,-192.441916,0.00019,2]
[358385060,1745044395594,350.121916,0.00018905,2]
[358385061,1745044486151,1059.2,0.00018832,2]
[358385062,1745044486594,-107.558084,0.00019,2]
[358385063,1745044538179,1000.0,0.00018823,2]
[358385064,1745044802283,150.0,0.00019553,5]
[358385065,1745044911552,23900.0,0.0001883,2]
[358385066,1745044922605,150.0,0.00019553,5]
[358385067,1745044966410,1844.13,0.0001882,2]
[358385068,1745045106465,200.0,0.00018811,2]
[358385069,1745045213605,250.0,0.00018889,2]
[358385070,1745045246107,-192.441916,0.00019455,2]
[358385071,1745045246128,-250.0,0.00019553,2]
[358385072,1745045246149,-71.85692887,0.0001959,2]
[358385073,1745045246186,-427.44512093,0.0001959,2]
[358385074,1745045246207,-192.65785484,0.0001959,2]
[358385075,1745045246229,-3938.8743,0.00019686,2]
[358385076,1745045246250,-213.73612336,0.0001969,2]
[358385077,1745045275159,20981.36,0.00018848,2]
[358385078,1745045432501,-150.0,0.00019585,2]
[358385079,1745045432511,-150.0,0.00019595,2]
[358385080,1745045432522,-180.59,0.00019599,2]
[358385081,1745045432532,-515.60367664,0.0001969,2]
[358385082,1745045432542,-500.0,0.00019699,2]
[358385083,1745045432552,-150.0,0.00019723,2]
[358385084,1745045432561,-150.0,0.00019726,2]
[358385085,1745045432571,-500.0,0.00019753,2]
[358385086,1745045432580,-300.0,0.00019784,2]
[358385087,1745045432590,-1578.81643834,0.00019785,2]